bitfinex/quotes_BTCUSD_20241124
["timestamp","ask_amount","ask_price","bid_price","bid_amount"]
[1732440527761,0.0017176,97714.0,97713.0,0.06673635]
[1732440527994,0.0017176,97714.0,97713.0,0.06759525]
[1732440528860,0.0017176,97714.0,97713.0,0.06861836]
[1732440530571,0.0017176,97714.0,97713.0,0.06832836]
[1732440539084,0.0017176,97714.0,97706.0,0.35]
[1732440539085,0.0017176,97714.0,97706.0,0.47484182]
[1732440539303,0.0017176,97714.0,97713.0,0.00222159]
[1732440539554,0.0017176,97714.0,97706.0,0.47484182]
[1732440539555,0.0017176,97714.0,97707.0,0.15651346]
[1732440539786,0.0017176,97714.0,97713.0,0.00222142]
[1732440540012,0.0017176,97714.0,97707.0,0.15651346]
[1732440540250,0.0017176,97714.0,97713.0,0.00222142]
[1732440540480,0.0017176,97714.0,97707.0,0.15651346]
[1732440540723,0.0017176,97714.0,97713.0,0.00222142]
[1732440540980,0.0017176,97714.0,97707.0,0.15651346]
[1732440541242,0.0017176,97714.0,97713.0,0.00222142]
[1732440541488,0.0017176,97714.0,97708.0,0.15]
[1732440541703,0.0017176,97714.0,97708.0,0.1522223]
[1732440541935,0.0017176,97714.0,97708.0,0.15]
[1732440542186,0.0017176,97714.0,97709.0,0.00222212]
[1732440545364,0.0017176,97714.0,97706.0,0.50651346]
[1732440545568,0.0017176,97714.0,97710.0,0.00222195]
[1732440545773,0.0017176,97714.0,97706.0,0.50651346]
[1732440545986,0.0017176,97714.0,97711.0,0.00222177]
[1732440546220,0.0017176,97714.0,97706.0,0.50651346]
[1732440546443,0.0017176,97714.0,97712.0,0.0022216]
[1732440546682,0.0017176,97714.0,97706.0,0.50651346]
[1732440547357,0.0017176,97714.0,97707.0,0.00222248]
[1732440549795,0.0017176,97714.0,97708.0,0.02419572]
[1732440550019,0.0017176,97714.0,97709.0,0.02419572]
[1732440550249,0.0017176,97714.0,97710.0,0.02419572]
[1732440550489,0.0017176,97714.0,97711.0,0.02419572]
[1732440550705,0.0017176,97714.0,97712.0,0.02419572]
[1732440550938,0.0017176,97714.0,97713.0,0.02419572]
[1732440551166,0.0017176,97714.0,97713.0,0.03931962]
[1732440551397,0.0017176,97714.0,97713.0,0.04154224]
[1732440551832,0.0017176,97714.0,97713.0,0.01734652]
[1732440552464,0.0017178,97715.0,97713.0,0.01734652]
[1732440552673,0.0017178,97715.0,97714.0,0.0151239]
[1732440553115,0.0017178,97715.0,97706.0,0.50651346]
[1732440553328,0.0017178,97715.0,97714.0,0.01735203]
[1732440553554,0.0017178,97715.0,97714.0,0.01512941]
[1732440553758,0.0017178,97715.0,97714.0,0.01735203]
[1732440553964,0.0017178,97715.0,97714.0,0.01512941]
[1732440554174,0.0017178,97715.0,97714.0,0.01735203]
[1732440554411,0.0017178,97715.0,97714.0,0.01512941]
[1732440554626,0.0017178,97715.0,97714.0,0.01735203]
[1732440554905,0.0017178,97715.0,97714.0,0.01512941]
[1732440555160,0.0017178,97715.0,97714.0,0.01735203]
[1732440555377,0.0017178,97715.0,97714.0,0.01512941]
[1732440555599,0.0017178,97715.0,97714.0,0.01735203]
[1732440555817,0.0017178,97715.0,97714.0,0.0393461]
[1732440556034,0.0017178,97715.0,97714.0,0.04156872]
[1732440561869,0.0017178,97715.0,97714.0,0.04116995]
[1732440562509,0.0756,97719.0,97714.0,0.04116995]
[1732440562718,0.0756,97719.0,97715.0,0.03935733]
[1732440562952,0.0756,97719.0,97716.0,0.03935733]
[1732440563182,0.0756,97719.0,97717.0,0.03935733]
[1732440563475,0.0756,97719.0,97718.0,0.03935733]
[1732440563701,0.0756,97719.0,97718.0,0.04155945]
[1732440565328,0.0756,97719.0,97718.0,0.00220212]
[1732440565558,0.0756,97719.0,97718.0,0.0393566]
[1732440565890,0.0756,97719.0,97718.0,0.04155872]
[1732440567068,0.0756,97719.0,97707.0,0.15]
[1732440567312,0.0756,97719.0,97718.0,0.00209145]
[1732440567800,0.0756,97719.0,97707.0,0.15]
[1732440568252,0.0756,97719.0,97708.0,0.00209321]
[1732440570850,0.0756,97719.0,97708.0,0.00204321]
[1732440574586,0.0756,97719.0,97708.0,0.00290201]
[1732440575331,0.0773176,97719.0,97708.0,0.00290201]
[1732440577222,0.0773176,97719.0,97709.0,0.17406024]
[1732440577460,0.0773176,97719.0,97710.0,0.02406024]
[1732440577680,0.0773176,97719.0,97711.0,0.02406024]
[1732440577900,0.0773176,97719.0,97710.0,0.00208989]
[1732440577901,0.0773176,97719.0,97712.0,0.02406024]
[1732440578121,0.0773176,97719.0,97713.0,0.02406024]
[1732440578348,0.0773176,97719.0,97714.0,0.02406024]
[1732440578606,0.0773176,97719.0,97715.0,0.02406024]
[1732440578848,0.0773176,97719.0,97716.0,0.02406024]
[1732440579092,0.0773176,97719.0,97717.0,0.03909741]
[1732440579353,0.0773176,97719.0,97718.0,0.03909741]
[1732440579569,0.0773176,97719.0,97718.0,0.04118589]
[1732440581919,0.1239176,97719.0,97718.0,0.04118589]
[1732440582421,0.1239176,97719.0,97718.0,0.03909741]
[1732440583089,0.1239176,97719.0,97718.0,0.04118589]
[1732440583839,0.1239176,97719.0,97718.0,0.04118764]
[1732440584063,0.1239176,97719.0,97718.0,0.01712643]
[1732440584511,0.1239176,97719.0,97718.0,0.01503795]
[1732440590670,0.1239176,97719.0,97718.0,0.01503794]
[1732440594488,0.1239176,97719.0,97718.0,0.01501822]
[1732440595816,0.1239176,97719.0,97710.0,0.06501822]
[1732440596040,0.1239176,97719.0,97709.0,0.15651346]
[1732440596276,0.1239176,97719.0,97711.0,0.002088]
[1732440596528,0.1239176,97719.0,97710.0,0.00208783]
[1732440596743,0.1239176,97719.0,97712.0,0.00208748]
[1732440596963,0.1239176,97719.0,97711.0,0.00208766]
[1732440597189,0.1239176,97719.0,97712.0,0.00208748]
[1732440597401,0.1239176,97719.0,97709.0,0.15651346]
[1732440597615,0.1239176,97719.0,97710.0,0.00208783]
[1732440603073,0.1239176,97719.0,97707.0,0.15]
[1732440603291,0.1239176,97719.0,97704.0,0.07645138]
[1732440605325,0.049,97717.0,97704.0,0.07645138]
[1732440605571,0.0825,97716.0,97704.0,0.07645138]
[1732440606039,0.049,97715.0,97704.0,0.07645138]
[1732440606549,0.1315,97713.0,97704.0,0.07645138]
[1732440606787,0.049,97710.0,97704.0,0.07645138]
[1732440607003,0.0825,97709.0,97705.0,0.1740283]
[1732440607257,0.0825,97707.0,97706.0,0.0240283]
[1732440607472,0.1315,97707.0,97706.0,0.0240283]
[1732440607690,0.1315,97707.0,97706.0,0.0390439]
[1732440607935,0.1315,97707.0,97706.0,0.0150156]
[1732440610258,0.5,97710.0,97706.0,0.01500751]
[1732440610504,0.5,97710.0,97707.0,0.01500751]
[1732440610742,0.5,97710.0,97706.0,0.0008589]
[1732440610987,0.5,97710.0,97707.0,0.01500367]
[1732440611268,0.5,97710.0,97706.0,0.0008589]
[1732440611525,0.1315,97709.0,97707.0,0.01500332]
[1732440611769,0.1315,97709.0,97708.0,0.01500332]
[1732440613917,0.1315,97709.0,97706.0,0.0008589]
[1732440615206,0.5,97710.0,97706.0,0.0008589]
[1732440615756,0.1315,97709.0,97706.0,0.0008589]
[1732440615977,0.049,97707.0,97706.0,0.0008589]
[1732440616207,0.1315,97707.0,97706.0,0.0008589]
[1732440621005,0.1315,97707.0,97706.0,0.01581477]
[1732440622000,0.1315,97707.0,97706.0,0.0008589]
[1732440626056,0.1315,97707.0,97706.0,0.03974906]
[1732440626302,0.5,97710.0,97706.0,0.03974906]
[1732440626533,0.5,97710.0,97707.0,0.03889016]
[1732440626766,0.5,97710.0,97708.0,0.03889016]
[1732440627025,0.5,97710.0,97709.0,0.03889016]
[1732440627026,0.45408797,97710.0,97709.0,0.03889016]
[1732440627256,0.45408797,97710.0,97709.0,0.26534154]
[1732440627709,0.45408797,97710.0,97709.0,0.267334]
[1732440633160,0.53900577,97710.0,97709.0,0.19088262]
[1732440633827,0.53900577,97710.0,97709.0,0.19059208]
[1732440634531,0.53876379,97710.0,97709.0,0.19059208]
[1732440634761,0.53876379,97710.0,97709.0,0.04059208]
[1732440638674,0.45556379,97710.0,97709.0,0.04059208]
[1732440638945,0.45556379,97710.0,97708.0,0.22645138]
[1732440638946,0.45556379,97710.0,97708.0,0.16704346]
[1732440639181,0.45556379,97710.0,97709.0,0.00188865]
[1732440639695,0.0832,97709.0,97708.0,0.07645138]
[1732440642326,0.0832,97709.0,97708.0,0.22645138]
[1732440642547,0.0832,97709.0,97708.0,0.22833254]
[1732440643479,0.0832,97709.0,97708.0,0.07833254]
[1732440643946,0.0832,97709.0,97708.0,0.07645138]
[1732440645643,0.0832,97709.0,97708.0,0.07731028]
[1732440649028,0.03728571,97709.0,97708.0,0.25107205]
[1732440649490,0.03728571,97709.0,97708.0,0.2529543]
[1732440650180,0.03728571,97709.0,97708.0,0.1029543]
[1732440650700,0.03728571,97709.0,97708.0,0.07919253]
[1732440650913,0.03728571,97709.0,97708.0,0.26781475]
[1732440651144,0.03728571,97709.0,97708.0,0.2659325]
[1732440651383,0.03728571,97709.0,97708.0,0.26781475]
[1732440651599,0.03728571,97709.0,97708.0,0.26782007]
[1732440652084,0.03728571,97709.0,97708.0,0.11782007]
[1732440652316,0.03728571,97709.0,97708.0,0.19136869]
[1732440652602,0.08658571,97709.0,97708.0,0.19136869]
[1732440653286,0.08658571,97709.0,97708.0,0.04136869]
[1732440653751,0.08658571,97709.0,97708.0,0.19136869]
[1732440654868,0.08658571,97709.0,97708.0,0.04136869]
[1732440656236,0.08658571,97709.0,97708.0,0.15274115]
[1732440656447,0.08658571,97709.0,97708.0,0.19092338]
[1732440657308,0.08658571,97709.0,97708.0,0.04092338]
[1732440657525,0.08658571,97709.0,97708.0,0.19092338]
[1732440657707,0.08830351,97709.0,97708.0,0.19092338]
[1732440659277,0.08830351,97709.0,97708.0,0.04092338]
[1732440659710,0.08830351,97709.0,97708.0,0.18904113]
[1732440659934,0.08830351,97709.0,97708.0,0.19092646]
[1732440660711,0.08830351,97709.0,97708.0,0.04092646]
[1732440661291,0.08830351,97709.0,97708.0,0.03904113]
[1732440661704,0.08610351,97709.0,97680.0,0.40665711]
[1732440661939,0.08610351,97709.0,97681.0,0.15]
[1732440661940,0.0471,97708.0,97681.0,0.15]
[1732440663044,0.0471,97708.0,97707.0,0.07645138]
[1732440663716,0.0471,97708.0,97703.0,0.07645138]
[1732440663931,0.0471,97708.0,97707.0,0.07645138]
[1732440666479,0.0471,97708.0,97703.0,0.07645138]
[1732440668718,0.0471,97708.0,97683.0,0.15]
[1732440669846,0.0471,97708.0,97682.0,0.45189621]
[1732440670266,0.048818,97708.0,97683.0,0.15]
[1732440670495,0.048818,97708.0,97707.0,0.15]
[1732440670968,0.048818,97708.0,97707.0,0.15188642]
[1732440671179,0.048818,97708.0,97707.0,0.00188642]
[1732440671596,0.048818,97708.0,97703.0,0.07645138]
[1732440672064,0.048818,97708.0,97704.0,0.0235121]
[1732440672280,0.048818,97708.0,97705.0,0.0235121]
[1732440672506,0.048818,97708.0,97706.0,0.0235121]
[1732440672731,0.048818,97708.0,97707.0,0.0235121]
[1732440673167,0.048818,97708.0,97707.0,0.02539852]
[1732440673411,0.048818,97708.0,97681.0,0.35804573]
[1732440673639,0.048818,97708.0,97678.0,0.0198]
[1732440673640,0.048818,97708.0,97707.0,0.0017921]
[1732440673852,0.048818,97708.0,97707.0,0.01461354]
[1732440675396,0.126018,97708.0,97707.0,0.01433145]
[1732440676610,0.07244658,97708.0,97707.0,0.01433145]
[1732440678541,0.07244658,97708.0,97689.0,0.07914521]
[1732440679730,0.0478,97707.0,97689.0,0.07914521]
[1732440679962,0.0772,97704.0,97689.0,0.07914521]
[1732440680205,0.0772,97701.0,97689.0,0.07914521]
[1732440680453,0.0478,97700.0,97689.0,0.07914521]
[1732440680685,0.0017178,97709.0,97689.0,0.07914521]
[1732440680686,0.0772,97699.0,97689.0,0.00269383]
[1732440680929,0.0478,97698.0,97689.0,0.00269383]
[1732440681177,0.0772,97697.0,97691.0,0.15]
[1732440681422,0.0772,97697.0,97692.0,0.00180778]
[1732440681881,0.048,97696.0,97692.0,0.00180778]
[1732440682608,0.048,97696.0,97691.0,0.15]
[1732440683076,0.043,97696.0,97692.0,0.0018076]
[1732440684014,0.043,97696.0,97689.0,0.00269383]
[1732440684271,0.043,97696.0,97693.0,0.00180742]
[1732440684515,0.043,97696.0,97691.0,0.15]
[1732440684760,0.043,97696.0,97694.0,0.00180725]
[1732440685029,0.043,97696.0,97695.0,0.00180707]
[1732440685490,0.043,97696.0,97689.0,0.00269383]
[1732440685731,0.043,97696.0,97695.0,0.00180707]
[1732440685959,0.043,97696.0,97691.0,0.15]
[1732440686406,0.043,97696.0,97695.0,0.00181079]
[1732440686407,0.043,97696.0,97691.0,0.15]
[1732440686637,0.043,97696.0,97689.0,0.07914521]
[1732440686638,0.043,97696.0,97692.0,0.00181132]
[1732440687101,0.043,97696.0,97689.0,0.07914521]
[1732440687329,0.043,97696.0,97693.0,0.00181114]
[1732440687604,0.043,97696.0,97689.0,0.07914521]
[1732440687605,0.043,97696.0,97689.0,0.00269383]
[1732440687836,0.043,97696.0,97694.0,0.00181097]
[1732440688069,0.043,97696.0,97690.0,0.01460019]
[1732440688070,0.043,97696.0,97695.0,0.01460019]
[1732440688304,0.043,97696.0,97695.0,0.01641098]
[1732440688570,0.043,97696.0,97695.0,0.01460019]
[1732440688806,0.1207,97696.0,97691.0,0.15]
[1732440689032,0.1207,97696.0,97695.0,0.00181079]
[1732440689263,0.1207,97696.0,97689.0,0.00269383]
[1732440689535,0.1207,97696.0,97695.0,0.00181079]
[1732440689800,0.1257,97707.0,97689.0,0.00269383]
[1732440690053,0.048,97706.0,97689.0,0.00269383]
[1732440690282,0.0777,97705.0,97689.0,0.00269383]
[1732440690516,0.048,97704.0,97689.0,0.00269383]
[1732440690752,0.048,97702.0,97689.0,0.00269383]
[1732440691009,0.0777,97701.0,97689.0,0.00269383]
[1732440691246,0.048,97700.0,97689.0,0.00269383]
[1732440691494,0.0777,97699.0,97689.0,0.00269383]
[1732440691753,0.048,97698.0,97689.0,0.00269383]
[1732440691986,0.048,97696.0,97689.0,0.00269383]
[1732440692258,0.0777,97695.0,97689.0,0.00269383]
[1732440692967,0.0777,97695.0,97661.0,0.023]
[1732440692968,0.048,97694.0,97661.0,0.023]
[1732440693442,0.048,97694.0,97663.0,0.023]
[1732440693658,0.048,97692.0,97663.0,0.023]
[1732440693912,0.048,97690.0,97664.0,0.00182032]
[1732440694130,0.048,97688.0,97664.0,0.00182032]
[1732440694358,0.048,97688.0,97653.0,0.002]
[1732440694805,0.048,97688.0,97644.0,0.1647045]
[1732440695033,0.048,97688.0,97653.0,0.002]
[1732440696022,0.048,97688.0,97660.0,0.0859934]
[1732440696477,0.0777,97686.0,97661.0,0.00182058]
[1732440696709,0.048,97685.0,97674.0,0.15]
[1732440696935,0.048,97685.0,97661.0,0.00182058]
[1732440697170,0.048,97685.0,97660.0,0.0859934]
[1732440697171,0.0777,97684.0,97675.0,0.00181759]
[1732440697402,0.0777,97682.0,97676.0,0.15]
[1732440697658,0.06314665,97700.0,97677.0,0.00181785]
[1732440697659,0.0777,97693.0,97677.0,0.00181785]
[1732440697952,0.0777,97691.0,97677.0,0.00181785]
[1732440698183,0.048,97690.0,97660.0,0.0093934]
[1732440698402,0.2,97695.0,97660.0,0.0093934]
[1732440698403,0.048,97688.0,97660.0,0.0093934]
[1732440698623,0.048,97686.0,97673.0,0.15]
[1732440698839,0.0777,97685.0,97660.0,0.0093934]
[1732440699070,0.048,97684.0,97674.0,0.00181996]
[1732440699305,0.26314665,97690.0,97660.0,0.0093934]
[1732440699306,0.1257,97683.0,97660.0,0.0093934]
[1732440699525,0.048,97681.0,97660.0,0.0093934]
[1732440699745,0.0777,97680.0,97660.0,0.0093934]
[1732440699962,0.048,97679.0,97660.0,0.0093934]
[1732440700172,0.048,97677.0,97660.0,0.0093934]
[1732440700606,0.048,97677.0,97664.0,0.15]
[1732440700827,0.048,97677.0,97665.0,0.00181996]
[1732440701052,0.0777,97676.0,97665.0,0.00181996]
[1732440701276,0.0494,97675.0,97660.0,0.0093934]
[1732440701757,0.0494,97675.0,97663.0,0.15]
[1732440702202,0.0494,97675.0,97664.0,0.00181978]
[1732440702831,0.0494,97675.0,97660.0,0.0093934]
[1732440703727,0.0494,97675.0,97663.0,0.15]
[1732440704171,0.0494,97675.0,97664.0,0.00181978]
[1732440704658,0.0494,97675.0,97660.0,0.0093934]
[1732440705083,0.0494,97675.0,97663.0,0.15]
[1732440705511,0.0494,97675.0,97664.0,0.00181978]
[1732440706172,0.0494,97675.0,97663.0,0.0008592]
[1732440706401,0.0494,97675.0,97663.0,0.1508592]
[1732440706628,0.0826,97674.0,97664.0,0.00182946]
[1732440706874,0.0494,97673.0,97664.0,0.00182946]
[1732440707379,0.0826,97672.0,97664.0,0.00182946]
[1732440707616,0.0494,97671.0,97663.0,0.1508592]
[1732440708041,0.0494,97671.0,97664.0,0.00182875]
[1732440708672,0.0494,97671.0,97664.0,0.00148482]
[1732440708889,0.0494,97671.0,97663.0,0.0008592]
[1732440711441,0.0494,97678.0,97663.0,0.1508592]
[1732440711665,0.0494,97701.0,97666.0,0.15]
[1732440711893,0.132,97698.0,97678.0,0.15]
[1732440712130,0.2,97705.0,97668.0,0.15]
[1732440712131,0.0494,97696.0,97668.0,0.15]
[1732440712356,0.0494,97696.0,97679.0,0.00182559]
[1732440712357,0.0826,97695.0,97679.0,0.00182559]
[1732440712581,0.0826,97695.0,97669.0,0.15]
[1732440712808,0.0826,97695.0,97667.0,0.15]
[1732440713040,0.0494,97694.0,97668.0,0.001827]
[1732440713269,0.0494,97694.0,97668.0,0.151827]
[1732440713541,0.0494,97694.0,97668.0,0.15]
[1732440713801,0.0494,97694.0,97669.0,0.00182664]
[1732440714249,0.0494,97694.0,97669.0,0.15182664]
[1732440714723,0.0494,97692.0,97669.0,0.15182664]
[1732440715224,0.0494,97692.0,97663.0,0.0008592]
[1732440715452,0.0494,97692.0,97670.0,0.00173478]
[1732440715678,0.0494,97692.0,97663.0,0.0008592]
[1732440717261,0.0494,97692.0,97674.0,0.15]
[1732440717709,0.0494,97692.0,97663.0,0.0008592]
[1732440717712,0.0494,97692.0,97675.0,0.00172644]
[1732440717939,0.0826,97691.0,97675.0,0.00172644]
[1732440718167,0.0494,97690.0,97663.0,0.0008592]
[1732440718391,0.0494,97688.0,97676.0,0.00172608]
[1732440718629,0.0494,97686.0,97669.0,0.15]
[1732440718871,0.0494,97684.0,97670.0,0.00172626]
[1732440719068,0.0494,97682.0,97670.0,0.00172626]
[1732440719303,0.0494,97680.0,97673.0,0.15]
[1732440719525,0.0494,97680.0,97663.0,0.0008592]
[1732440719526,0.0826,97679.0,97663.0,0.0008592]
[1732440719764,0.0826,97679.0,97674.0,0.00172214]
[1732440720013,0.0826,97679.0,97663.0,0.0008592]
[1732440720266,0.0826,97679.0,97675.0,0.00172189]
[1732440720489,0.0826,97679.0,97663.0,0.0008592]
[1732440720490,0.0826,97679.0,97664.0,0.00172383]
[1732440720711,0.0826,97679.0,97676.0,0.00172171]
[1732440720928,0.0826,97679.0,97673.0,0.15]
[1732440721157,0.0826,97679.0,97663.0,0.0008592]
[1732440721395,0.0826,97679.0,97674.0,0.00172207]
[1732440721613,0.0826,97679.0,97673.0,0.15]
[1732440721828,0.0826,97679.0,97674.0,0.00172011]
[1732440722759,0.0826,97679.0,97663.0,0.0008592]
[1732440723203,0.0826,97679.0,97676.0,0.15]
[1732440723436,0.0826,97679.0,97677.0,0.00171958]
[1732440724385,0.0826,97679.0,97663.0,0.0008592]
[1732440724610,0.0826,97679.0,97676.0,0.15]
[1732440724871,0.0826,97679.0,97677.0,0.00171958]
[1732440726026,0.0826,97679.0,97671.0,0.40575973]
[1732440726027,0.0826,97679.0,97678.0,0.00171941]
[1732440726275,0.0826,97679.0,97671.0,0.15]
[1732440726810,0.0826,97679.0,97672.0,0.00172046]
[1732440727695,0.0826,97679.0,97673.0,0.15]
[1732440728129,0.0017184,97692.0,97673.0,0.15]
[1732440728130,0.1268,97691.0,97674.0,0.00172018]
[1732440730345,0.0471,97690.0,97674.0,0.00172018]
[1732440730555,0.0017184,97692.0,97674.0,0.00172018]
[1732440730556,0.0797,97689.0,97674.0,0.00172018]
[1732440730821,0.0471,97688.0,97674.0,0.00172018]
[1732440732982,0.083,97687.0,97674.0,0.00172018]
[1732440733199,0.0463,97686.0,97674.0,0.00172018]
[1732440734534,0.0463,97686.0,97675.0,0.15]
[1732440734754,0.0463,97686.0,97675.0,0.1517245]
[1732440735873,0.0463,97686.0,97675.0,0.0017245]
[1732440736107,0.0463,97686.0,97675.0,0.1517245]
[1732440736597,0.0017184,97691.0,97675.0,0.1517245]
[1732440736598,0.0463,97684.0,97675.0,0.1517245]
[1732440737083,0.0463,97682.0,97675.0,0.1517245]
[1732440737341,0.083,97681.0,97675.0,0.0017245]
[1732440739242,0.083,97681.0,97676.0,0.014523]
[1732440739493,0.083,97681.0,97677.0,0.01624627]
[1732440739728,0.083,97681.0,97678.0,0.014523]
[1732440739955,0.083,97681.0,97679.0,0.014523]
[1732440740174,0.083,97681.0,97680.0,0.014523]
[1732440741283,0.083,97681.0,97680.0,0.00172274]
[1732440742005,0.083,97681.0,97674.0,0.15]
[1732440742256,0.083,97681.0,97680.0,0.00172274]
[1732440742474,0.083,97681.0,97674.0,0.15]
[1732440742717,0.083,97681.0,97680.0,0.00172274]
[1732440742958,0.083,97681.0,97675.0,0.00172362]
[1732440743227,0.083,97681.0,97680.0,0.00172274]
[1732440743460,0.083,97681.0,97680.0,0.01453817]
[1732440743714,0.083,97681.0,97680.0,0.01626091]
[1732440746876,0.0463,97682.0,97680.0,0.01626091]
[1732440747115,0.0017184,97684.0,97683.0,0.023]
[1732440747567,0.0017184,97684.0,97683.0,0.03753521]
[1732440747797,0.0017184,97691.0,97683.0,0.03925494]
[1732440748028,0.0017184,97691.0,97685.0,0.023]
[1732440748338,0.0017184,97691.0,97687.0,0.023]
[1732440748570,0.0017184,97691.0,97688.0,0.01453521]
[1732440748821,0.0017184,97691.0,97689.0,0.01453521]
[1732440749058,0.0017184,97691.0,97690.0,0.01453521]
[1732440749301,0.0017184,97691.0,97690.0,0.01625494]
[1732440749600,0.048,97702.0,97690.0,0.03948761]
[1732440749780,0.048,97702.0,97692.0,0.15]
[1732440749988,0.048,97702.0,97693.0,0.03776788]
[1732440750211,0.048,97702.0,97694.0,0.03776788]
[1732440750430,0.048,97702.0,97695.0,0.01453521]
[1732440750649,0.048,97702.0,97696.0,0.01453521]
[1732440750869,0.048,97702.0,97695.0,0.0017137]
[1732440750870,0.048,97702.0,97697.0,0.01453521]
[1732440751084,0.048,97702.0,97698.0,0.01453521]
[1732440751302,0.048,97702.0,97699.0,0.01453521]
[1732440753315,0.048,97702.0,97699.0,0.03772957]
[1732440756578,0.45556439,97700.0,97699.0,0.03772957]
[1732440758826,0.45556439,97700.0,97692.0,0.15]
[1732440759044,0.45556439,97700.0,97699.0,0.03767349]
[1732440759950,0.45556439,97700.0,97699.0,0.03937927]
[1732440762252,0.45556439,97700.0,97699.0,0.03767349]
[1732440764637,0.45556439,97700.0,97699.0,0.03937436]
[1732440764864,0.45556439,97700.0,97699.0,0.00170087]
[1732440765283,0.4096495,97700.0,97699.0,0.03937514]
[1732440765286,0.4096495,97700.0,97699.0,0.03767427]
[1732440765543,0.4096495,97700.0,97699.0,0.03937514]
[1732440765997,0.4096495,97700.0,97699.0,0.03767427]
[1732440768945,0.3970673,97700.0,97699.0,0.03767427]
[1732440774030,0.3970673,97700.0,97699.0,0.03739934]
[1732440774502,0.3970673,97700.0,97699.0,0.03909906]
[1732440777446,0.3970673,97700.0,97699.0,0.03913878]
[1732440778967,0.33330384,97700.0,97699.0,0.03913878]
[1732440779686,0.33330384,97700.0,97699.0,0.01609914]
[1732440781279,0.33330384,97700.0,97699.0,0.01695804]
[1732440781989,0.38290384,97700.0,97699.0,0.01695804]
[1732440782228,0.45820384,97700.0,97699.0,0.01695804]
[1732440782454,0.45820384,97700.0,97699.0,0.01525832]
[1732440782914,0.45543344,97700.0,97699.0,0.01525832]
[1732440783339,0.45543344,97700.0,97699.0,0.01525497]
[1732440785760,0.45543344,97700.0,97699.0,0.0008589]
[1732440791129,0.45543344,97700.0,97699.0,0.002461]
[1732440791367,0.45543344,97700.0,97699.0,0.0008589]
[1732440791601,0.45543344,97700.0,97699.0,0.00246589]
[1732440791826,0.45543344,97700.0,97699.0,0.0008589]
[1732440792045,0.45543344,97700.0,97699.0,0.00246589]
[1732440792293,0.45543344,97700.0,97699.0,0.0008589]
[1732440792502,0.45543344,97700.0,97699.0,0.00246589]
[1732440792724,0.45543344,97700.0,97699.0,0.0008589]
[1732440792948,0.45543344,97700.0,97699.0,0.00246589]
[1732440793918,0.45543344,97700.0,97699.0,0.01672052]
[1732440799999,0.45543344,97700.0,97699.0,0.00152665]
[1732440800513,0.45543344,97700.0,97692.0,0.000859]
[1732440802541,0.0464,97699.0,97692.0,0.000859]
[1732440809960,0.0464,97699.0,97698.0,0.15]
[1732440810401,0.0464,97699.0,97698.0,0.151523]
[1732440811269,0.0464,97699.0,97698.0,0.001523]
[1732440811952,0.0464,97699.0,97696.0,0.15]
[1732440812166,0.0464,97699.0,97697.0,0.00152352]
[1732440816978,0.0464,97699.0,97697.0,0.00238242]
[1732440820547,0.0464,97699.0,97698.0,0.15]
[1732440820785,0.0464,97699.0,97698.0,0.15152386]
[1732440822654,0.0464,97699.0,97698.0,0.55771224]
[1732440824671,0.0464,97699.0,97698.0,0.00152386]
[1732440825092,0.0464,97699.0,97697.0,0.0008589]
[1732440829203,0.0481178,97699.0,97697.0,0.0008589]
[1732440833056,0.0481178,97699.0,97698.0,0.00147423]
[1732440833478,0.0481178,97699.0,97697.0,0.0008589]
[1732440833886,0.0481178,97699.0,97698.0,0.00147423]
[1732440834316,0.0481178,97699.0,97697.0,0.0008589]
[1732440834727,0.0481178,97699.0,97698.0,0.00147423]
[1732440835141,0.0481178,97699.0,97697.0,0.0008589]
[1732440837894,0.0481178,97699.0,97697.0,4.2e-07]
[1732440841249,0.0481178,97699.0,97698.0,0.01424921]
[1732440842381,0.0481178,97699.0,97697.0,4.2e-07]
[1732440844318,0.0481178,97699.0,97698.0,0.0142488]
[1732440845410,0.0481178,97699.0,97697.0,4.2e-07]
[1732440846330,0.0481178,97699.0,97698.0,0.01424848]
[1732440846753,0.0481178,97699.0,97698.0,0.01424836]
[1732440848736,0.0481178,97699.0,97697.0,4.2e-07]
[1732440848973,0.0481178,97699.0,97698.0,0.01424838]
[1732440851258,0.0017178,97699.0,97698.0,0.01424838]
[1732440852391,0.0017178,97699.0,97697.0,4.2e-07]
[1732440852630,0.33053344,97700.0,97698.0,0.03704668]
[1732440852631,0.28633771,97700.0,97698.0,0.03704668]
[1732440852918,0.28633771,97700.0,97699.0,0.03704668]
[1732440853358,0.28633771,97700.0,97699.0,0.0142485]
[1732440853578,0.28633771,97700.0,97699.0,0.01571968]
[1732440854693,0.28633771,97700.0,97699.0,0.00147118]
[1732440854921,0.28633771,97700.0,97699.0,0.01561691]
[1732440855132,0.28633771,97700.0,97699.0,0.01414573]
[1732440855349,0.28633771,97700.0,97699.0,0.01560962]
[1732440856250,0.28633771,97700.0,97699.0,0.01414573]
[1732440862908,0.28633771,97700.0,97699.0,0.01560806]
[1732440867427,0.28633771,97700.0,97699.0,0.00146233]
[1732440867677,0.28633771,97700.0,97699.0,0.01560222]
[1732440867891,0.28633771,97700.0,97699.0,0.01413989]
[1732440868136,0.28633771,97700.0,97699.0,0.0156028]
[1732440870578,0.22257267,97700.0,97699.0,0.0156028]
[1732440871076,0.22257267,97700.0,97699.0,0.01413989]
[1732440872530,0.22257267,97700.0,97699.0,0.01613989]
[1732440873062,0.22257267,97700.0,97699.0,0.01559893]
[1732440873305,0.22257267,97700.0,97699.0,0.00145904]
[1732440873532,0.1766669,97700.0,97699.0,0.03780831]
[1732440874652,0.1766669,97700.0,97699.0,0.01543907]
[1732440875507,0.1766669,97700.0,97699.0,0.01629797]
[1732440878936,0.1766669,97700.0,97699.0,0.01483893]
[1732440880869,0.1766669,97700.0,97699.0,0.0008589]
[1732440881100,0.1766669,97700.0,97699.0,0.01472171]
[1732440883610,0.11290856,97700.0,97699.0,0.01472171]
[1732440885014,0.11290856,97700.0,97699.0,0.01465271]
[1732440887426,0.11290856,97700.0,97699.0,0.01465456]
[1732440890911,0.11290856,97700.0,97699.0,0.01465522]
[1732440891816,0.11290856,97700.0,97699.0,0.01465568]
[1732440893777,0.04915053,97700.0,97699.0,0.01465696]
[1732440894206,0.04915053,97700.0,97699.0,0.01611242]
[1732440894438,0.04915053,97700.0,97699.0,0.01611327]